fUSD/lending_fUSD_20251217
["ID","MTS","AMOUNT","RATE_DAILY","PERIOD"]
[398878613,1765955432713,-500.0,0.00014273,2]
[398878614,1765955432723,-500.0,0.00014273,2]
[398878615,1765955432732,-535.2854296,0.00014273,2]
[398878616,1765955432742,-500.0,0.00014273,2]
[398878617,1765955432752,-500.0,0.00014273,2]
[398878618,1765955432761,-501.11096091,0.00014273,2]
[398878619,1765955432771,-500.47389711,0.00014273,2]
[398878620,1765955432780,-500.0,0.00014273,2]
[398878621,1765955432790,-500.0,0.00014273,2]
[398878622,1765955432801,-500.0,0.00014273,2]
[398878623,1765955432815,-500.0,0.00014273,2]
[398878624,1765955432825,-165.39158711,0.00014273,2]
[398878625,1765955432834,-641.05531723,0.00014273,2]
[398878626,1765955432843,-501.44037787,0.00014273,2]
[398878627,1765955432853,-172.7215259,0.00014273,2]
[398878628,1765955432863,-500.0,0.00014273,2]
[398878629,1765955432872,-500.0,0.00014273,2]
[398878630,1765955432881,-500.0,0.00014273,2]
[398878631,1765955432895,-500.66368365,0.00014273,2]
[398878632,1765955432904,-500.79410579,0.00014273,2]
[398878633,1765955432913,-500.0,0.00014273,2]
[398878634,1765955432923,-1000.0,0.00014821,2]
[398878635,1765955432932,-1000.0,0.00014821,2]
[398878636,1765955432941,-500.0,0.00014821,2]
[398878637,1765955432951,-1000.0,0.00014821,2]
[398878638,1765955432960,-1000.0,0.00014821,2]
[398878639,1765955432970,-501.76335981,0.00014821,2]
[398878640,1765955432979,-1000.0,0.00014821,2]
[398878641,1765955432989,-1000.0,0.00014821,2]
[398878642,1765955432998,-1000.0,0.00014821,2]
[398878643,1765955433008,-1000.0,0.00014821,2]
[398878644,1765955433017,-1000.0,0.00014821,2]
[398878645,1765955433027,-1000.0,0.00014821,2]
[398878646,1765955433037,-500.0,0.00015041,2]
[398878647,1765955433047,-500.0,0.00015073,2]
[398878648,1765955433057,-500.0,0.00015073,2]
[398878649,1765955433067,-500.0,0.00015073,2]
[398878650,1765955433077,-342.67,0.00015205,2]
[398878651,1765955433087,-3637.32,0.00015225,2]
[398878652,1765955433097,-163.24,0.0001528,2]
[398878653,1765955433107,-1500.0,0.00015368,2]
[398878654,1765955433117,-289.33467407,0.00015368,2]
[398878655,1765955433127,-1000.0,0.00015368,2]
[398878656,1765955433136,-170.91937378,0.00015368,2]
[398878657,1765955433146,-500.0,0.00015368,2]
[398878658,1765955433156,-1000.0,0.00015368,2]
[398878659,1765955433167,-1000.0,0.00015368,2]
[398878660,1765955433177,-613.62252263,0.00015368,2]
[398878661,1765955433187,-500.0,0.00015589,2]
[398878662,1765955433196,-500.0,0.00015616,2]
[398878663,1765955433206,-150.0,0.00015616,2]
[398878664,1765955433216,-500.0,0.00015616,2]
[398878665,1765955433226,-500.0,0.00015616,2]
[398878666,1765955433235,-500.0,0.00015616,2]
[398878667,1765955433246,-500.0,0.00015616,2]
[398878668,1765955433255,-150.0,0.00015616,2]
[398878669,1765955433265,-563.0,0.00015616,2]
[398878670,1765955433275,-150.0,0.00015616,2]
[398878671,1765955433286,-150.0,0.00015616,2]
[398878672,1765955433296,-150.0,0.00015616,2]
[398878673,1765955433306,-663.0,0.00015616,2]
[398878674,1765955433316,-150.0,0.00015616,2]
[398878675,1765955433326,-1133.08879494,0.00015621,2]
[398878676,1765955433335,-1000.0,0.00015621,2]
[398878677,1765955433345,-1000.0,0.00015621,2]
[398878678,1765955433355,-420.0,0.00015631,2]
[398878679,1765955433365,-1600.0,0.00015646,2]
[398878680,1765955433374,-297.69,0.00015696,2]
[398878681,1765955433383,-150.0,0.00015699,2]
[398878682,1765955433393,-1680.0,0.00015699,2]
[398878683,1765955433403,-300.0,0.00015699,2]
[398878684,1765955433414,-300.0,0.00015699,2]
[398878685,1765955433424,-500.0,0.00015753,2]
[398878686,1765955433434,-500.0,0.00015753,2]
[398878687,1765955433448,-159.46370897,0.00015753,2]
[398878688,1765955433458,-500.0,0.00015753,2]
[398878689,1765955433468,-500.0,0.00015753,2]
[398878690,1765955433479,-500.0,0.00015753,2]
[398878691,1765955433489,-563.0,0.00015753,2]
[398878692,1765955433499,-150.0,0.00015753,2]
[398878693,1765955433509,-663.0,0.00015753,2]
[398878694,1765955433519,-500.0,0.0001589,2]
[398878695,1765955433529,-500.0,0.0001589,2]
[398878696,1765955433539,-250.0,0.0001589,2]
[398878697,1765955433549,-500.0,0.0001589,2]
[398878698,1765955433559,-500.0,0.0001589,2]
[398878699,1765955433569,-563.0,0.0001589,2]
[398878700,1765955433579,-150.0,0.0001589,2]
[398878701,1765955433589,-663.0,0.0001589,2]
[398878702,1765955433599,-500.0,0.0001589,2]
[398878703,1765955433608,-500.0,0.0001589,2]
[398878704,1765955433619,-150.0,0.0001589,2]
[398878705,1765955433629,-150.0,0.0001589,2]
[398878706,1765955433638,-150.0,0.0001589,2]
[398878707,1765955433648,-150.0,0.0001589,2]
[398878708,1765955433659,-150.0,0.0001589,2]
[398878709,1765955433671,-150.0,0.0001589,2]
[398878710,1765955433682,-150.0,0.0001589,2]
[398878711,1765955433692,-150.0,0.0001589,2]
[398878712,1765955433703,-180.92510742,0.0001589,2]
[398878713,1765955433713,-500.0,0.0001589,2]
[398878714,1765955433723,-150.0,0.0001589,2]
[398878715,1765955433732,-500.0,0.0001589,2]
[398878716,1765955433742,-150.55930981,0.0001589,2]
[398878717,1765955433752,-150.0,0.0001589,2]
[398878718,1765955433762,-546.0,0.0001589,2]
[398878719,1765955433771,-150.0,0.0001589,2]
[398878720,1765955433781,-2672.0,0.0001589,2]
[398878721,1765955433791,-553.0,0.0001589,2]
[398878722,1765955433801,-500.0,0.0001589,2]
[398878723,1765955433815,-207.91,0.00015971,2]
[398878724,1765955433824,-438.44908272,0.00016027,2]
[398878725,1765955433838,-500.0,0.00016027,2]
[398878726,1765955433848,-500.0,0.00016027,2]
[398878727,1765955433858,-500.0,0.00016027,2]
[398878728,1765955433868,-563.0,0.00016027,2]
[398878729,1765955433878,-159.90590555,0.00016027,2]
[398878730,1765955433889,-663.0,0.00016027,2]
[398878731,1765955433899,-500.0,0.00016027,2]
[398878732,1765955433908,-500.0,0.00016027,2]
[398878733,1765955433918,-150.0,0.00016027,2]
[398878734,1765955433928,-213.38124582,0.00016027,2]
[398878735,1765955433937,-163.14521453,0.00016027,2]
[398878736,1765955433947,-150.0,0.00016027,2]
[398878737,1765955433957,-151.49893375,0.00016027,2]
[398878738,1765955433966,-150.0,0.00016027,2]
[398878739,1765955433976,-150.0,0.00016027,2]
[398878740,1765955433986,-150.0,0.00016027,2]
[398878741,1765955433995,-500.0,0.00016027,2]
[398878742,1765955434005,-150.0,0.00016027,2]
[398878743,1765955434014,-500.0,0.00016027,2]
[398878744,1765955434023,-546.0,0.00016027,2]
[398878745,1765955434033,-2672.0,0.00016027,2]
[398878746,1765955434043,-150.0,0.00016027,2]
[398878747,1765955434052,-553.0,0.00016027,2]
[398878748,1765955434062,-500.0,0.00016027,2]
[398878749,1765955434072,-163.24,0.00016129,2]
[398878750,1765955434081,-500.0,0.00016164,2]
[398878751,1765955434090,-500.0,0.00016164,2]
[398878752,1765955434100,-641.09829799,0.00016164,2]
[398878753,1765955434110,-563.0,0.00016164,2]
[398878754,1765955434119,-663.0,0.00016164,2]
[398878755,1765955434129,-500.0,0.00016164,2]
[398878756,1765955434139,-217.83727829,0.00016164,2]
[398878757,1765955434148,-150.0,0.00016164,2]
[398878758,1765955434158,-256.37469814,0.00016164,2]
[398878759,1765955434169,-150.0,0.00016164,2]
[398878760,1765955434179,-150.0,0.00016164,2]
[398878761,1765955434189,-150.0,0.00016164,2]
[398878762,1765955434199,-500.0,0.00016164,2]
[398878763,1765955434209,-298.62340088,0.00016164,2]
[398878764,1765955434223,-500.0,0.00016164,2]
[398878765,1765955434235,-546.0,0.00016164,2]
[398878766,1765955434245,-150.0,0.00016164,2]
[398878767,1765955434255,-2672.0,0.00016164,2]
[398878768,1765955434266,-553.0,0.00016164,2]
[398878769,1765955434277,-500.0,0.00016164,2]
[398878770,1765955434287,-599.0,0.00016164,2]
[398878771,1765955434298,-150.0,0.00016164,2]
[398878772,1765955434309,-150.0,0.00016164,2]
[398878773,1765955434319,-150.0,0.00016164,2]
[398878774,1765955434330,-1009.88704976,0.00016168,2]
[398878775,1765955434341,-1500.0,0.00016168,2]
[398878776,1765955434351,-620.65318016,0.0001619,2]
[398878777,1765955434361,-200.0,0.0001619,2]
[398878778,1765955434372,-200.0,0.0001619,2]
[398878779,1765955434383,-200.0,0.0001619,2]
[398878780,1765955434393,-151.0,0.0001619,2]
[398878781,1765955434403,-151.0,0.0001619,2]
[398878782,1765955434413,-151.0,0.0001619,2]
[398878783,1765955434428,-151.0,0.0001619,2]
[398878784,1765955434442,-151.0,0.0001619,2]
[398878785,1765955434452,-151.0,0.0001619,2]
[398878786,1765955434462,-151.0,0.0001619,2]
[398878787,1765955434472,-151.0,0.0001619,2]
[398878788,1765955434481,-162.38933071,0.0001619,2]
[398878789,1765955434491,-30595.93519293,0.000162,2]
[398878790,1765955434506,-4562.01934014,0.000162,2]
[398878791,1765955434517,-404.0,0.000162,2]
[398878792,1765955434529,-666.0,0.000162,2]
[398878799,1765955438282,-392.85782781,0.000162,2]
[398878800,1765955438293,-628.73244732,0.000162,2]
[398878801,1765955440147,-438.65514724,0.000162,2]
[398878802,1765955440168,-2973.61902719,0.000162,2]
[398878803,1765955440178,-350.0,0.00016301,2]
[398878804,1765955440187,-500.0,0.00016301,2]
[398878805,1765955440196,-300.25416089,0.00016301,2]
[398878806,1765955440207,-262.74583911,0.00016301,2]
[398878807,1765955440216,-663.0,0.00016301,2]
[398878808,1765955440224,-500.0,0.00016301,2]
[398878809,1765955440234,-150.0,0.00016301,2]
[398878810,1765955440243,-150.0,0.00016301,2]
[398878811,1765955440252,-135.79416089,0.00016301,2]
[398878812,1765955440263,-114.20583911,0.00016301,2]
[398878813,1765955440272,-500.0,0.00016301,2]
[398878814,1765955440280,-500.0,0.00016301,2]
[398878815,1765955440289,-546.0,0.00016301,2]
[398878816,1765955440298,-206.9760943,0.00016301,2]
[398878817,1765955440307,-716.96757161,0.00016301,2]
[398878835,1765955443552,-345.0,0.00016204,2]
[398878836,1765955443595,-19556.1916687,0.00016204,2]
[398878837,1765955443604,-1955.03242839,0.00016301,2]
[398878838,1765955443613,-553.0,0.00016301,2]
[398878839,1765955443623,-500.0,0.00016301,2]
[398878840,1765955443632,-599.0,0.00016301,2]
[398878841,1765955443644,-150.0,0.00016301,2]
[398878842,1765955443654,-150.0,0.00016301,2]
[398878843,1765955443663,-1645.72706949,0.00016338,2]
[398878844,1765955443673,-2500.0,0.00016338,2]
[398878845,1765955443682,-1645.72706947,0.000164,2]
[398878846,1765955443691,-211.05391613,0.00016437,2]
[398878847,1765955443700,-469.91095688,0.00016437,2]
[398878848,1765955443710,-500.0,0.00016438,2]
[398878849,1765955443719,-563.0,0.00016438,2]
[398878850,1765955443729,-663.0,0.00016438,2]
[398878851,1765955443738,-500.0,0.00016438,2]
[398878852,1765955443747,-206.93654099,0.00016438,2]
[398878853,1765955443756,-265.54976249,0.00016438,2]
[398878854,1765955443766,-500.0,0.00016438,2]
[398878855,1765955443775,-500.0,0.00016438,2]
[398878856,1765955443784,-546.0,0.00016438,2]
[398878857,1765955443794,-2672.0,0.00016438,2]
[398878858,1765955443804,-553.0,0.00016438,2]
[398878859,1765955443817,-500.0,0.00016438,2]
[398878860,1765955443827,-599.0,0.00016438,2]
[398878861,1765955443836,-150.0,0.00016438,2]
[398878862,1765955443845,-150.0,0.00016438,2]
[398878864,1765955443857,-500.0,0.00016438,2]
[398878866,1765955443866,-500.0,0.00016438,2]
[398878868,1765955443875,-500.0,0.00016438,2]
[398878870,1765955443885,-500.0,0.00016438,2]
[398878872,1765955443894,-500.0,0.00016438,2]
[398878874,1765955443903,-500.0,0.00016438,2]
[398878876,1765955443912,-500.0,0.00016438,2]
[398878878,1765955443921,-500.0,0.00016438,2]
[398878880,1765955443931,-500.0,0.00016438,2]
[398878882,1765955443940,-500.0,0.00016438,2]
[398878884,1765955443949,-500.0,0.00016438,2]
[398878886,1765955443958,-500.0,0.00016438,2]
[398878888,1765955443967,-500.0,0.00016438,2]
[398878890,1765955443975,-500.0,0.00016438,2]
[398878892,1765955443984,-500.0,0.00016438,2]
[398878894,1765955443993,-500.0,0.00016438,2]
[398878896,1765955444002,-500.0,0.00016438,2]
[398878898,1765955444011,-299.37964481,0.00016438,2]
[398878900,1765955444020,-500.0,0.00016438,2]
[398878902,1765955444029,-500.0,0.00016438,2]
[398878904,1765955444039,-500.0,0.00016438,2]
[398878906,1765955444049,-500.0,0.00016438,2]
[398878908,1765955444058,-4602.15,0.00016438,2]
[398878910,1765955444067,-481.46730423,0.00016454,2]
[398878912,1765955444076,-1645.72706947,0.00016463,2]
[398878914,1765955444086,-150.0,0.00016473,2]
[398878916,1765955444095,-502.30169263,0.00016499,2]
[398878918,1765955444103,-500.0,0.00016499,2]
[398878920,1765955444112,-500.0,0.00016499,2]
[398878922,1765955444121,-500.0,0.00016499,2]
[398878923,1765955444131,-500.0,0.00016499,2]
[398878924,1765955444140,-1645.72706947,0.00016525,2]
[398878925,1765955444149,-457.18724897,0.00016575,2]
[398878926,1765955444158,-563.0,0.00016575,2]
[398878927,1765955444167,-663.0,0.00016575,2]
[398878928,1765955444176,-500.0,0.00016575,2]
[398878929,1765955444185,-500.0,0.00016575,2]
[398878930,1765955444194,-500.0,0.00016575,2]
[398878931,1765955444203,-546.0,0.00016575,2]
[398878932,1765955444213,-2672.0,0.00016575,2]
[398878933,1765955444222,-553.0,0.00016575,2]
[398878934,1765955444231,-500.0,0.00016575,2]
[398878935,1765955444242,-599.0,0.00016575,2]
[398878936,1765955444252,-250.0,0.00016575,2]
[398878937,1765955444263,-150.0,0.00016575,2]
[398878938,1765955444272,-1645.72706947,0.00016588,2]
[398878939,1765955444281,-1645.72706947,0.0001665,2]
[398878940,1765955444290,-563.0,0.00016712,2]
[398878941,1765955444301,-663.0,0.00016712,2]
[398878942,1765955444312,-500.0,0.00016712,2]
[398878943,1765955444323,-500.0,0.00016712,2]
[398878944,1765955444331,-500.0,0.00016712,2]
[398878945,1765955444340,-546.0,0.00016712,2]
[398878946,1765955444349,-2672.0,0.00016712,2]
[398878947,1765955444358,-553.0,0.00016712,2]
[398878948,1765955444367,-500.0,0.00016712,2]
[398878949,1765955444376,-599.0,0.00016712,2]
[398878950,1765955444385,-150.0,0.00016712,2]
[398878951,1765955444395,-164.0,0.00016712,2]
[398878952,1765955444404,-1645.72706947,0.00016713,2]
[398878953,1765955444413,-2000.0,0.00016716,2]
[398878954,1765955444421,-3596.28922655,0.00016741,2]
[398878955,1765955444431,-1645.72706947,0.00016775,2]
[398878956,1765955444440,-27289.36240859,0.0001683,2]
[398878957,1765955444449,-1645.72706947,0.00016838,2]
[398878958,1765955444459,-563.0,0.00016849,2]
[398878959,1765955444468,-663.0,0.00016849,2]
[398878960,1765955444477,-500.0,0.00016849,2]
[398878961,1765955444486,-500.0,0.00016849,2]
[398878962,1765955444495,-500.0,0.00016849,2]
[398878963,1765955444504,-546.0,0.00016849,2]
[398878964,1765955444514,-2672.0,0.00016849,2]
[398878965,1765955444523,-553.0,0.00016849,2]
[398878966,1765955444532,-500.0,0.00016849,2]
[398878967,1765955444541,-599.0,0.00016849,2]
[398878968,1765955444550,-200.0,0.00016849,2]
[398878969,1765955444559,-12793.85,0.00016863,2]
[398878970,1765955444570,-155.20047333,0.00016896,2]
[398878971,1765955444580,-1183.06219407,0.00016896,2]
[398878972,1765955444589,-971.68939722,0.000169,2]
[398878973,1765955444599,-739.7955323,0.000169,2]
[398878974,1765955444609,-9999.99,0.00016922,2]
[398878975,1765955444618,-500.0,0.00016954,2]
[398878976,1765955444627,-223.7131472,0.00016962,2]
[398878977,1765955444636,-163.24,0.00016978,2]
[398878978,1765955444645,-151.0,0.00016983,2]
[398878979,1765955444655,-563.0,0.00016986,2]
[398878980,1765955444665,-663.0,0.00016986,2]
[398878981,1765955444675,-500.0,0.00016986,2]
[398878982,1765955444684,-389.0,0.00016986,2]
[398878983,1765955444693,-500.0,0.00016986,2]
[398878984,1765955444704,-546.0,0.00016986,2]
[398878985,1765955444713,-2672.0,0.00016986,2]
[398878986,1765955444722,-553.0,0.00016986,2]
[398878987,1765955444731,-229.75618492,0.00016986,2]
[398878988,1765955444740,-599.0,0.00016986,2]
[398878989,1765955444750,-500.0,0.00016986,2]
[398878990,1765955444759,-500.0,0.00016986,2]
[398878991,1765955444769,-621.23,0.00016986,2]
[398878992,1765955444778,-57992.81602529,0.00016986,2]
[398878993,1765955444831,-500.0,0.00016438,2]
[398878994,1765955444840,-218.67770914,0.00016438,2]
[398878995,1765955444851,-281.32229086,0.00016438,2]
[398878996,1765955444860,-500.0,0.00016438,2]
[398878997,1765955444869,-255.07299591,0.00016986,2]
[398878998,1765955444895,-500.0,0.00016438,2]
[398878999,1765955444904,-273.11986588,0.00016986,2]
[398879001,1765955446459,-500.0,0.00016438,2]
[398879002,1765955446468,-500.0,0.00016438,2]
[398879003,1765955446477,-500.0,0.00016438,2]
[398879004,1765955446487,-500.0,0.00016438,2]
[398879005,1765955446496,-500.0,0.00016438,2]
[398879006,1765955446505,-500.0,0.00016438,2]
[398879007,1765955446514,-500.0,0.00016438,2]
[398879009,1765955446523,-500.0,0.00016438,2]
[398879011,1765955446532,-500.0,0.00016438,2]
[398879012,1765955446541,-500.0,0.00016438,2]
[398879014,1765955446551,-500.0,0.00016438,2]
[398879016,1765955446561,-500.0,0.00016438,2]
[398879017,1765955446570,-402.076457,0.00016438,2]
[398879018,1765955446593,-97.923543,0.00016438,2]
[398879019,1765955446602,-513.63342861,0.000169,2]
[398879020,1765955446620,-756.49234209,0.000169,2]
[398879021,1765955446630,-213.0,0.00016951,2]
[398879022,1765955446639,-1926.53185493,0.00016986,2]
[398879023,1765955446650,-1688.47972,0.00016986,2]
[398879024,1765955446661,-19183.69944258,0.00016986,2]
[398879041,1765956605775,483.0,0.00022,30]
[398879047,1765956632257,-619.67,0.00013699,2]
[398879048,1765956632269,-263.0,0.00013699,2]
[398879049,1765956632281,-500.0,0.00014273,2]
[398879050,1765956632290,-500.85320558,0.00014273,2]
[398879051,1765956632299,-335.75779875,0.00014273,2]
[398879052,1765956632311,-250.0,0.00015042,2]
[398879053,1765956632321,-1500.0,0.00015561,2]
[398879054,1765956632331,-1000.0,0.00015563,2]
[398879055,1765956632340,-999.0,0.000156,3]
[398879056,1765956632350,-1200.0,0.0001562,2]
[398879057,1765956632359,-1194.94,0.00015621,2]
[398879058,1765956632368,-8056.42,0.00015656,2]
[398879059,1765956632378,-218.3,0.00015709,2]
[398879060,1765956632387,-1400.56797245,0.00015726,2]
[398879061,1765956632398,-1034.55202755,0.00015726,2]
[398879062,1765956632407,-200.0,0.0001585,2]
[398879063,1765956632417,-186.97129171,0.00015954,2]
[398879064,1765956632426,-357.49394395,0.00015963,2]
[398879066,1765956632436,-500.0,0.00015973,2]
[398879068,1765956632445,-173.85,0.00016076,2]
[398879070,1765956632454,-500.0,0.00016438,2]
[398879072,1765956632464,-500.0,0.00016438,2]
[398879074,1765956632474,-500.0,0.00016438,2]
[398879076,1765956632484,-500.0,0.00016438,2]
[398879078,1765956632492,-382.43240569,0.00016438,2]
[398879081,1765956632506,-117.56759431,0.00016438,2]
[398879083,1765956632515,-500.0,0.00016438,2]
[398879085,1765956632525,-180.02685896,0.00016438,2]
[398879087,1765956632536,-319.97314104,0.00016438,2]
[398879089,1765956632545,-500.0,0.00016438,2]
[398879091,1765956632554,-288.46792694,0.00016438,2]
[398879093,1765956632564,-211.53207306,0.00016438,2]
[398879095,1765956632574,-500.0,0.00016438,2]
[398879097,1765956632583,-500.0,0.00016438,2]
[398879099,1765956632592,-492.00502697,0.00016438,2]
[398879102,1765956632612,-7.99497303,0.00016438,2]
[398879104,1765956632621,-264.47502697,0.00016438,2]
[398879106,1765956632634,-235.52497303,0.00016438,2]
[398879108,1765956632643,-500.0,0.00016438,2]
[398879110,1765956632652,-500.0,0.00016438,2]
[398879112,1765956632662,-435.99047326,0.00016438,2]
[398879143,1765956638368,-64.00952674,0.00016438,2]
[398879144,1765956638378,-500.0,0.00016438,2]
[398879145,1765956638387,-223.35676564,0.00016438,2]
[398879146,1765956638399,-276.64323436,0.00016438,2]
[398879147,1765956638409,-500.0,0.00016438,2]
[398879148,1765956638418,-500.0,0.00016438,2]
[398879149,1765956638429,-500.0,0.00016438,2]
[398879150,1765956638439,-379.93796448,0.00016438,2]
[398879151,1765956638448,-500.0,0.00016438,2]
[398879152,1765956638459,-500.0,0.00016438,2]
[398879153,1765956638469,-500.0,0.00016438,2]
[398879154,1765956638478,-500.0,0.00016438,2]
[398879155,1765956638487,-500.0,0.00016438,2]
[398879156,1765956638497,-500.0,0.00016438,2]
[398879157,1765956638506,-500.0,0.00016438,2]
[398879158,1765956638515,-500.0,0.00016438,2]
[398879159,1765956638525,-387.99379645,0.00016438,2]
[398879160,1765956638534,-500.0,0.00016438,2]
[398879161,1765956638543,-500.0,0.00016438,2]
[398879162,1765956638553,-500.0,0.00016438,2]
[398879163,1765956638562,-500.0,0.00016438,2]
[398879164,1765956638572,-23.72500471,0.00016454,2]
[398879165,1765956638591,-457.74229952,0.00016454,2]
[398879166,1765956638614,-1000.0,0.000166,2]
[398879167,1765956638639,-200.0,0.00016623,2]
[398879168,1765956638648,-207.4,0.00016623,2]
[398879169,1765956638657,-215.0738,0.00016623,2]
[398879170,1765956638667,-223.0315306,0.00016623,2]
[398879171,1765956638676,-300.53131453,0.00016623,2]
[398879172,1765956638685,-151.0,0.00016623,2]
[398879173,1765956638695,-1000.0,0.00016623,2]
[398879174,1765956638704,-553.64373807,0.00016623,2]
[398879175,1765956638714,-1000.0,0.00016623,2]
[398879176,1765956638723,-1000.0,0.00016623,2]
[398879177,1765956638732,-367.82577868,0.00016623,2]
[398879178,1765956638741,-1000.0,0.00016623,2]
[398879180,1765956638751,-1000.0,0.00016623,2]
[398879182,1765956638759,-1000.0,0.00016623,2]
[398879184,1765956638768,-1000.0,0.00016623,2]
[398879186,1765956638777,-151.0,0.00016623,2]
[398879188,1765956638786,-1000.0,0.00016623,2]
[398879190,1765956638797,-1000.0,0.00016623,2]
[398879191,1765956638806,-1000.0,0.00016623,2]
[398879193,1765956638815,-1000.0,0.00016623,2]
[398879195,1765956638824,-1000.0,0.00016623,2]
[398879197,1765956638833,-250.0,0.00016623,2]
[398879198,1765956638842,-1000.0,0.00016623,2]
[398879199,1765956638851,-250.0,0.00016623,2]
[398879200,1765956638860,-1000.0,0.00016623,2]
[398879201,1765956638869,-311.1,0.00016623,2]
[398879202,1765956638879,-250.0,0.00016623,2]
[398879203,1765956638888,-1000.0,0.00016623,2]
[398879204,1765956638898,-1500.0,0.00016623,2]
[398879205,1765956638907,-250.0,0.00016623,2]
[398879206,1765956638916,-1500.0,0.00016623,2]
[398879207,1765956638926,-250.0,0.00016623,2]
[398879208,1765956638935,-250.0,0.00016623,2]
[398879209,1765956638945,-1500.0,0.00016623,2]
[398879210,1765956638955,-1500.0,0.00016623,2]
[398879211,1765956638965,-250.0,0.00016623,2]
[398879212,1765956638975,-500.0,0.00016623,2]
[398879213,1765956638984,-250.0,0.00016623,2]
[398879214,1765956638994,-500.0,0.00016623,2]
[398879215,1765956639003,-1500.0,0.00016623,2]
[398879216,1765956639013,-250.0,0.00016623,2]
[398879217,1765956639022,-500.0,0.00016623,2]
[398879218,1765956639031,-1500.0,0.00016623,2]
[398879219,1765956639040,-500.0,0.00016623,2]
[398879220,1765956639049,-250.0,0.00016623,2]
[398879221,1765956639058,-1500.0,0.00016623,2]
[398879222,1765956639068,-500.0,0.00016623,2]
[398879223,1765956639078,-500.0,0.00016623,2]
[398879224,1765956639088,-250.0,0.00016623,2]
[398879225,1765956639098,-500.0,0.00016623,2]
[398879226,1765956639108,-1234.0,0.00016623,2]
[398879227,1765956639117,-1500.0,0.00016623,2]
[398879228,1765956639126,-500.0,0.00016623,2]
[398879229,1765956639136,-250.0,0.00016623,2]
[398879230,1765956639145,-500.0,0.00016623,2]
[398879231,1765956639155,-1500.0,0.00016623,2]
[398879232,1765956639164,-190.64000361,0.00016623,2]
[398879233,1765956639173,-500.0,0.00016623,2]
[398879234,1765956639183,-1500.0,0.00016623,2]
[398879235,1765956639192,-500.0,0.00016623,2]
[398879236,1765956639201,-460.65198152,0.00016623,2]
[398879237,1765956639210,-500.0,0.00016623,2]
[398879238,1765956639219,-500.0,0.00016623,2]
[398879239,1765956639228,-500.0,0.00016623,2]
[398879240,1765956639238,-300.0,0.00016623,2]
[398879241,1765956639247,-500.0,0.00016623,2]
[398879242,1765956639256,-500.0,0.00016623,2]
[398879243,1765956639266,-500.0,0.00016623,2]
[398879244,1765956639278,-620.0,0.00016623,2]
[398879245,1765956639287,-500.0,0.00016623,2]
[398879246,1765956639296,-500.0,0.00016623,2]
[398879247,1765956639305,-500.0,0.00016623,2]
[398879248,1765956639314,-150.0,0.00016712,2]
[398879249,1765956639323,-150.0,0.00016712,2]
[398879250,1765956639333,-500.0,0.00016712,2]
[398879251,1765956639342,-500.0,0.00016712,2]
[398879252,1765956639351,-150.0,0.00016712,2]
[398879253,1765956639360,-500.0,0.00016712,2]
[398879254,1765956639369,-200.0,0.00016712,2]
[398879255,1765956639378,-500.0,0.00016712,2]